Cogmind - Beta 17.1 @@@ ROGUE MODE // 2026.09.15 @ 01:54:54 Player: J1ang-5h1 Result: Destroyed by as-85454 with Assembled P-sword Performance ------------- Evolutions (4) 2000 Regions Visited (17) 3400 Robots Destroyed (164) 820 Value Destroyed (4495) 4495 Prototype IDs (71) 1420 Alien Tech Used (0) 0 Bonus (13992) 13992 TOTAL SCORE: 26127 Bonus ------- High Alert Combat Kills 337 Follower Combat Kills 585 Prayed to X0-1V1 5000 Major X0-1V1 Interference 6450 Aligned with FarCom 300 Met Data Miner 300 Met Imprinter 300 Destroyed Z-Imprinter 1000 Friendly Fire -280 Cogmind --------- Core Integrity 0/650 Matter 47/300 Energy 65/100 System Corruption 22% Temperature Cool (0) Movement Core (50) Location -6/Deep Caves Parts ------- > --- POWER (2) -------- (None) > --- PROPULSION (4) --- (None) > --- UTILITY (7) ------ (None) > --- WEAPON (3) ------- (None) > --- INVENTORY (5) ---- Compact Wheel High-capacity Battery (250) Graphene Brace Corruption Screen Peak State ------------ > --- POWER ------------ Enhanced Nuclear Core Cold Fusion Reactor > --- PROPULSION ------- Armored Treads Heavy Treads Makeshift Flight Unit > --- UTILITY ---------- Huge Storage Unit Active Sensor Spoofer Improved Heavy Armor Plating Makeshift System Restoration Module Self-contained Transmogrifier X0-1V1's Piety Tracker > --- WEAPON ----------- Heavy Tesla Rifle Heavy Wave Gun Heavy Wave Gun > --- INVENTORY -------- Compact Wheel High-capacity Battery Improved Matter Compressor Tactical Coordination Suite Weapon Mount Phase Shifter Cloak of Protection Improved Core Shielding Experimental Power Shielding Graphene Brace Improved Shield Generator Remote Shield Corruption Screen High-powered Tractor Beam Magnetic Acceleration Cannon Magnetic Acceleration Cannon Magnetic Acceleration Cannon Magnetic Acceleration Cannon Heavy Missile Launcher Heavy Missile Launcher Heavy Missile Launcher Heavy Missile Launcher Molecular Deconstructor Shock Maul [Rating: 110] Favorites ----------- Power Cold Fusion Reactor Engine F-cell Engine Power Core Nuclear Core Reactor Cold Fusion Reactor Propulsion Medium Treads Treads Medium Treads Leg Improved Titanium Leg Wheel Compact Wheel Hover Unit Zionite Glidesys I Flight Unit Makeshift Flight Unit Utility Huge Storage Unit Device X0-1V1's Piety Tracker Storage Huge Storage Unit Processor Improved Targeting Computer Hackware Hacking Suite Protection Hardened Light Armor Plating Weapon Magnetic Acceleration Cannon Energy Gun Improved Heavy Laser Energy Cannon Long-range Proton Cannon Ballistic Gun Improved Assault Rifle Ballistic Cannon Magnetic Acceleration Cannon Launcher Improved Concussive RPG Special Weapon Mining Laser Impact Weapon Heavy Mace Slashing Weapon Power Sword Build | -11 -10 -10 -9 -9 -9 -8 -8 -7 -7 -7 -7 -6 -6 -6 -6 -6 -6 ------- Run | Yrd Mat Min Mat Min Exi Min Mat Fac Low Low Dat Pro Fac Low Low Zio Dee Slots Evolved 8 | . . . 2 . . . 2 2 . . . . 2 . . . . Power 1 | . . . . . . . . . . . . . 1 . . . . Propulsion 2 | . . . . . . . 2 . . . . . . . . . . Utility 4 | . . . 1 . . . . 2 . . . . 1 . . . . Weapon 1 | . . . 1 . . . . . . . . . . . . . . Parts Attached 126 | 8 10 5 18 5 1 . 18 16 . 3 . 6 2 2 4 1 27 Power 18 | 1 2 2 3 1 . . 3 2 . 1 . . . . . . 3 Engine 12 | 1 2 2 2 1 . . 1 2 . 1 . . . . . . . Core 3 | . . . 1 . . . 2 . . . . . . . . . . Reactor 3 | . . . . . . . . . . . . . . . . . 3 Propulsion 28 | 2 5 . 2 2 . . 10 1 . . . 3 . . . 1 2 Treads 14 | 2 . . . . . . 8 1 . . . 3 . . . . . Leg 2 | . . . . . . . . . . . . . . . . 1 1 Wheel 11 | . 5 . 2 2 . . 2 . . . . . . . . . . Hover 1 | . . . . . . . . . . . . . . . . . 1 Flight . | . . . . . . . . . . . . . . . . . . Utility 41 | 2 1 1 4 2 1 . 2 9 . 2 . 1 1 1 4 . 10 Device 15 | 1 . 1 1 1 . . 1 . . 2 . 1 . . 2 . 5 Storage 6 | 1 1 . 1 . 1 . . 2 . . . . . . . . . Processor 3 | . . . 1 . . . . 1 . . . . . . 1 . . Hackware 3 | . . . . . . . . 3 . . . . . . . . . Protection 14 | . . . 1 1 . . 1 3 . . . . 1 1 1 . 5 Artifact . | . . . . . . . . . . . . . . . . . . Weapon 39 | 3 2 2 9 . . . 3 4 . . . 2 1 1 . . 12 Energy Gun 10 | . 1 1 1 . . . . 2 . . . . . . . . 5 Energy Cannon 2 | . . . 1 . . . . . . . . 1 . . . . . Ballistic Gun 13 | 3 . . 6 . . . 2 1 . . . . 1 . . . . Ballistic Cannon 5 | . . . . . . . . . . . . . . 1 . . 4 Launcher 5 | . . 1 . . . . 1 . . . . 1 . . . . 2 Special Weapon 2 | . 1 . . . . . . . . . . . . . . . 1 Impact Weapon 1 | . . . 1 . . . . . . . . . . . . . . Slashing Weapon 1 | . . . . . . . . 1 . . . . . . . . . Piercing Weapon . | . . . . . . . . . . . . . . . . . . Special Melee Weapon . | . . . . . . . . . . . . . . . . . . Unidentified Prototypes 17 | . . 1 2 . . . . 5 . . . . . . . . 9 Corrupted Parts 4 | . . . . . . . . . . . . . . . . . 4 System Corruption 18 | . . . . . . . . . . . . . . . . . 18 Parts Lost 48 | . 5 . 6 2 . . 4 . . . . 2 . 1 . . 28 Power 8 | . 2 . 2 1 . . . . . . . . . . . . 3 Propulsion 12 | . 2 . 1 1 . . 2 . . . . 1 . 1 . . 4 Utility 9 | . . . 1 . . . 1 . . . . . . . . . 7 Weapon 19 | . 1 . 2 . . . 1 . . . . 1 . . . . 14 Highest Loss Streak 20 | . 2 . 2 1 . . 2 . . . . 2 . 1 . . 20 To Critical Strikes 2 | . . . . . . . . . . . . . . 1 . . 1 Average Backups 23 | 4 16 24 24 25 25 25 24 23 25 24 25 24 24 24 24 24 21 Power . | . 1 1 . . . . . . . . . . . . . . . Propulsion 1 | 2 2 3 4 4 4 4 2 . 1 1 1 1 2 1 1 1 1 Utility 13 | . 5 11 14 15 15 15 15 16 17 17 17 17 15 14 14 13 12 Weapon 7 | 1 6 8 3 4 5 5 6 7 7 6 7 6 6 7 9 10 7 Tool/Special . | . . . . . . . . . . . . . . . . . . Unused Backups 41 | . 1 2 7 2 . . 10 2 . 2 . 1 . 3 1 . 10 Power 2 | . . . . . . . . . . . . . . 1 . . 1 Propulsion 3 | . . . . . . . 3 . . . . . . . . . . Utility 20 | . 1 . 2 2 . . 4 2 . 1 . . . 1 . . 7 Weapon 15 | . . 2 5 . . . 2 . . 1 . 1 . 1 1 . 2 Tool/Special 1 | . . . . . . . 1 . . . . . . . . . . Average Slot Usage (%) 94 | . 94 100 96 97 72 100 97 91 100 99 100 99 94 93 89 92 90 Engine 7 | . 13 14 8 9 10 10 4 6 7 7 7 7 6 6 5 5 2 Core 1 | . . . 1 . . . 3 . . . . . . 2 1 4 . Reactor 1 | . . . . . . . . . . . . . 4 2 4 2 8 Treads 12 | . 2 . . . . . 16 24 28 28 28 27 25 17 12 11 . Leg 2 | . . . . . . . . . . . . . . . . 8 18 Wheel 7 | . 20 28 21 17 20 20 13 3 . . . . . . . . . Device 17 | . 14 14 10 15 19 20 12 7 7 12 14 14 12 25 22 24 21 Storage 7 | . 13 14 10 10 10 10 8 7 7 7 7 7 6 6 6 6 6 Processor 3 | . . . 7 10 10 10 8 6 . . . . . . 1 5 5 Hackware 5 | . . . . . . . . 14 21 21 21 21 18 7 7 . . Protection 3 | . . . 7 4 . . 2 4 7 1 . . 6 3 2 3 8 Energy Gun 5 | . 8 26 8 . . . . 1 7 7 7 11 6 . . 7 8 Energy Cannon 3 | . . . 5 7 . 10 . . . . . 4 6 3 . 8 1 Ballistic Gun 8 | . 18 1 14 19 1 19 22 14 13 14 14 5 1 1 . . . Ballistic Cannon 2 | . . . . . . . . . . . . . . 11 16 . 6 Peak Build Rating 110 | 7 11 27 35 35 34 34 49 67 68 69 68 74 82 90 104 110 108 Average Rating 66 | 5 8 24 31 34 25 33 44 54 67 66 68 71 77 84 93 104 97 On Entrance 53 | . 7 11 27 35 33 34 34 48 67 67 68 68 74 81 88 104 108 Avg Prop Armor Cover (%) 10 | . . . . . . . 12 1 . . . . . . 1 9 15 Naked Turns . | . . . . . . . . . . . . . . . . . . Heaviest Build 160 | 12 87 95 103 103 95 95 101 110 110 110 108 115 129 138 158 160 132 Greatest Support 126 | 40 40 20 32 32 32 32 71 99 99 99 99 103 103 118 90 126 80 Greatest Overweight (x) 40 | . 8 4 5 9 2 2 6 1 1 1 1 1 1 1 1 6 40 Average Overweight (x) 2 | . 4 4 3 3 2 2 3 . 1 1 1 1 1 1 1 1 3 Largest Inventory Capacity 25 | 8 25 25 25 25 25 25 25 25 25 25 25 25 25 25 25 25 25 Average Capacity 24 | 7 23 25 25 25 25 25 25 25 25 25 25 25 25 25 25 25 25 Most Carried 25 | 6 25 25 25 25 25 25 25 25 25 25 25 25 25 25 25 25 25 Average Carried 23 | 4 16 24 24 24 24 25 24 24 25 24 25 24 24 24 24 25 22 Final Capacity 25 | 8 25 25 25 25 25 25 25 25 25 25 25 25 25 25 25 25 5 Final Carried 25 | 5 24 25 25 25 25 25 25 25 25 25 25 25 25 25 25 25 4 Transmogrified Parts 97 | . . . . . . . . . . . . . . 23 13 61 . Integrity Recovered 775 | . . . . . . . . . . . . . . 532 99 144 . Class Distribution -------------------- 17% | Tank 12% | Hacker-Tank 11% | Mutant 10% | Gunner 8% | Hacker-Skirmisher 7% | Skirmisher 7% | Scavenger-Mutant 4% | Derelict-Gunner 3% | Derelict-Tank Dominant Class ---------------- Mutant | -10/Materials Scavenger-Mutant | -10/Mines Gunner | -9/Materials Gunner | -9/Mines Scavenger-Mutant | -9/Exiles Scavenger-Skirmisher | -8/Mines Skirmisher | -8/Materials Hacker-Mutant | -7/Factory Hacker-Tank | -7/Lower Caves Hacker-Skirmisher | -7/Lower Caves Hacker-Skirmisher | -7/Data Miner Hacker-Gunner | -6/Proximity Caves Hacker-Mutant | -6/Factory Tank | -6/Lower Caves Hacker-Tank | -6/Lower Caves Tank | -6/Zion Gunner | -6/Deep Caves Resources | -11 -10 -10 -9 -9 -9 -8 -8 -7 -7 -7 -7 -6 -6 -6 -6 -6 -6 ----------- Run | Yrd Mat Min Mat Min Exi Min Mat Fac Low Low Dat Pro Fac Low Low Zio Dee Matter Collected 6694 | 312 441 114 1031 472 . . 1588 275 254 84 . 440 22 307 785 72 497 Remotely 68 | . . . . . . . . . . . . . . . . . 68 Salvage Created 6467 | 113 728 298 1972 664 . 13 1386 12 149 . . 226 72 138 228 . 468 Parts 345 | 3 37 19 124 43 . 3 72 2 3 . . 1 6 4 6 . 22 Haulers Intercepted 9 | . 2 . 6 . . . 1 . . . . . . . . . . Recyclers Shooed 7 | 1 1 . 1 3 . . 1 . . . . . . . . . . Parts Field Recycled . | . . . . . . . . . . . . . . . . . . Retrieved Matter . | . . . . . . . . . . . . . . . . . . Parts Self-Destructed 43 | . . . . . . . . . 3 2 . 12 . 15 8 3 . Prevented . | . . . . . . . . . . . . . . . . . . Parts Restored . | . . . . . . . . . . . . . . . . . . Kills | -11 -10 -10 -9 -9 -9 -8 -8 -7 -7 -7 -7 -6 -6 -6 -6 -6 -6 ------- Run | Yrd Mat Min Mat Min Exi Min Mat Fac Low Low Dat Pro Fac Low Low Zio Dee Combat Hostiles Destroyed 166 | . 13 10 34 13 . 4 23 . . . . 4 1 2 5 . 57 Guns 75 | . 13 7 23 4 . . 20 . . . . . 1 2 . . 5 Cannons 21 | . . . 5 4 . . . . . . . . . . 5 . 7 AOE 68 | . . 3 6 4 . 4 3 . . . . 3 . . . . 45 Classes Destroyed 19 | 2 5 1 3 2 . . 2 . . . . 1 . 1 1 . 1 Worker 4 | . 1 . 1 2 . . . . . . . . . . . . . Builder 3 | . . . 2 . . . 1 . . . . . . . . . . Tunneler 4 | 2 . . . 2 . . . . . . . . . . . . . Hauler 9 | . 2 . 6 . . . 1 . . . . . . . . . . Recycler 14 | 1 2 1 4 3 . . 3 . . . . . . . . . . Minesweeper 1 | . . . . . . . . . . . . . . 1 . . . Mechanic 1 | . . . 1 . . . . . . . . . . . . . . Operator 3 | . . . 2 . . . . 1 . . . . . . . . . Watcher 8 | . 2 . 4 . . . 2 . . . . . . . . . . Swarmer 33 | . 6 5 13 4 . 4 . . . . . . . . 1 . . Grunt 55 | . 7 4 13 7 . . 16 . . . . 3 . 1 4 . . Brawler 1 | . . . . 1 . . . . . . . . . . . . . Duelist 1 | . . . . . . . 1 . . . . . . . . . . Sentry 15 | . . 1 8 . . . 5 . . . . . 1 . . . . Hunter 1 | . . . . . . . 1 . . . . . . . . . . Behemoth 2 | . . . . . . . . . . . . 1 . 1 . . . Z-Light 8 | . . . . . . . . . . . . . . . . . 8 Tinkerer 1 | . . . . . . . . . . . . . . . 1 . . Assembled 49 | . . . . 1 . . . . . . . . . . . . 48 Best Kill Streak 42 | 3 3 4 11 6 . 4 5 1 . . . 2 1 1 2 . 42 Combat Bots Only 42 | . 3 4 6 4 . 4 3 . . . . 2 1 1 2 . 42 Max Kills in Single Turn 9 | 1 1 2 4 3 . 2 3 1 . . . 2 1 1 1 . 9 Gunslinging 2 | . . . 2 . . . 1 . . . . . . . . . . Exploded 9 | . . 2 4 3 . 2 3 . . . . 2 . . . . 9 Melee . | . . . . . . . . . . . . . . . . . . Uniques/NPCs Destroyed 1 | . . . . . . . . . . . . . . . . . 1 Z-Imprinter (-6/Deep Caves) Combat | -11 -10 -10 -9 -9 -9 -8 -8 -7 -7 -7 -7 -6 -6 -6 -6 -6 -6 -------- Run | Yrd Mat Min Mat Min Exi Min Mat Fac Low Low Dat Pro Fac Low Low Zio Dee Hostile Shots Fired 806 | . 71 25 122 22 . 3 96 . . 10 . 58 16 51 26 . 306 Missed 265 | . 11 8 37 9 . 1 23 . . . . 23 6 26 7 . 114 Hits 541 | . 60 17 85 13 . 2 73 . . 10 . 35 10 25 19 . 192 Melee 11 | . . . . 3 . . . . . . . . . . . . 8 Projectile 530 | . 60 17 85 10 . 2 73 . . 10 . 35 10 25 19 . 184 Critical Strikes 12 | . 1 . 3 1 . . 3 . . 1 . . . 2 . . 1 Part Disruptions 1 | . . . . . . . . . . . . . . . . . 1 Actively Blocked 1 | . . . . . . . . . . . . . . . . . 1 Damage Taken 9083 | . 653 163 992 229 . 17 1153 35 . 218 . 578 62 390 254 . 4339 Core 1411 | . 91 65 193 37 . . 226 . . 34 . 103 5 20 53 . 584 Absorbed by Shields 125 | . . . . . . . . . . . . . . . 93 . 32 Redirected to Shielding 281 | . . . . . . . . . . . . . . . . . 281 Ignored by Resistances 114 | . . . . . . . . . . . . . 8 106 . . . Regen/Repaired (Parts) 1151 | . 401 . 59 . . . 123 . . . . . . . . 568 . Core Remaining (%) 75 | 100 . 56 . . . 91 35 . . . . 96 . . . . . Volleys Fired 420 | 8 81 19 97 29 . 2 69 3 . 2 . 12 3 21 29 1 44 Largest 3 | 2 2 2 3 3 . 1 3 3 . 3 . 3 3 3 3 1 3 Hottest 225 | 40 100 125 143 114 . 30 81 128 . 128 . 225 190 173 136 81 191 Shots Fired 971 | 16 160 34 237 79 . 4 196 7 . 6 . 30 9 45 59 1 88 Gun 729 | 16 158 30 201 52 . 2 194 7 . 6 . 20 6 22 . . 15 Cannon 212 | . . . 34 25 . . . . . . . 7 3 23 59 1 60 Launcher 28 | . . 4 2 2 . 2 2 . . . . 3 . . . . 13 Special 2 | . 2 . . . . . . . . . . . . . . . . Kinetic 649 | 16 116 4 118 52 . 2 194 6 . 4 . 4 3 26 59 . 45 Thermal 257 | . 44 26 96 25 . . . 1 . 2 . 23 6 19 . . 15 Explosive 28 | . . 4 2 2 . 2 2 . . . . 3 . . . . 13 Electromagnetic 37 | . . . 21 . . . . . . . . . . . . 1 15 Robot Hit Streak 28 | 11 14 6 28 19 . 2 23 1 . 4 . 8 3 21 7 . 8 Robot Miss Streak 8 | 1 8 3 3 4 . 1 3 4 . 1 . 2 4 1 3 . 3 Penetration Max 1 | . . . . . . . . . . . . . . . 1 . . Secondary Targets 9 | . 2 . 3 . . . 4 . . . . . . . . . . Max Gunslinging Chain 2 | . 1 . 2 . . . 1 . . . . . . . . . . Shots Hit Robots 612 | 14 98 22 137 49 . 1 144 2 3 4 . 22 3 39 28 . 46 Core Hits 378 | 5 38 17 70 26 . 4 65 1 2 . . 8 1 8 10 . 123 Critical Kills 5 | . . . . 1 . . 1 . . . . . . . 3 . . Critical Parts Destroyed 4 | . 2 . . . . . . . . . . . . . 2 . . Critical Strikes 18 | . 4 1 2 1 . . 1 . . . . . . . 6 . 3 Burn 5 | . 2 1 2 . . . . . . . . . . . . . . Meltdown 1 | . . . . 1 . . . . . . . . . . . . . Destroy 8 | . 2 . . . . . 1 . . . . . . . 5 . . Blast 3 | . . . . . . . . . . . . . . . 1 . 2 Corrupt 1 | . . . . . . . . . . . . . . . . . 1 Melee Attacks 9 | . . . 1 1 . . 4 . 3 . . . . . . . . Impact 6 | . . . 1 1 . . 4 . . . . . . . . . . Slashing 3 | . . . . . . . . . 3 . . . . . . . . Piercing . | . . . . . . . . . . . . . . . . . . Sneak Attacks 1 | . . . . 1 . . . . . . . . . . . . . Combat Hostiles . | . . . . . . . . . . . . . . . . . . Follow-up Attacks . | . . . . . . . . . . . . . . . . . . Damage Inflicted 18497 | 140 1020 598 2939 1176 . 203 2687 38 206 115 . 946 66 1013 936 . 6414 Guns 7469 | 140 996 255 2134 438 . . 2324 38 . 115 . 388 66 380 . . 195 Cannons 3337 | . . . 489 398 . . . . . . . 170 . 633 936 . 711 Explosions 7374 | . . 343 316 253 . 203 363 . . . . 388 . . . . 5508 Melee 293 | . . . . 87 . . . . 206 . . . . . . . . Ramming . | . . . . . . . . . . . . . . . . . . Kinetic 6695 | 140 629 18 919 438 . . 2324 38 . 85 . 46 24 408 936 . 690 Thermal 3727 | . 391 237 1317 398 . . . . . 30 . 512 42 605 . . 195 Explosive 7374 | . . 343 316 253 . 203 363 . . . . 388 . . . . 5508 Electromagnetic 408 | . . . 387 . . . . . . . . . . . . . 21 Impact 87 | . . . . 87 . . . . . . . . . . . . . Slashing 206 | . . . . . . . . . 206 . . . . . . . . Piercing . | . . . . . . . . . . . . . . . . . . Highest Corruption 31 | . . . 14 17 17 31 13 . . . . . . . . . 22 Average Corruption 13 | . . . 7 15 17 18 13 . . . . . . . . . 13 Corruption Purged . | . . . . . . . . . . . . . . . . . . Corruption Blocked . | . . . . . . . . . . . . . . . . . . Effects 211 | . . . 42 35 23 16 61 . . . . . . . . . 34 Message Errors 45 | . . . 9 5 7 3 15 . . . . . . . . . 6 Matter Fused 44 | . . . 13 7 2 1 10 . . . . . . . . . 11 Heat Flow Errors 24 | . . . 3 5 4 3 5 . . . . . . . . . 4 Energy Discharges 29 | . . . 4 9 2 4 6 . . . . . . . . . 4 Parts Rejected 5 | . . . 1 . . . 1 . . . . . . . . . 3 Parts Fused 4 | . . . 2 . 1 . 1 . . . . . . . . . . Data Loss (minor) 22 | . . . 4 1 4 1 9 . . . . . . . . . 3 Data Loss (major) 9 | . . . . 4 2 1 1 . . . . . . . . . 1 Misfires 8 | . . . 1 . . 2 4 . . . . . . . . . 1 Alerts 7 | . . . 1 2 1 1 2 . . . . . . . . . . Misdirections 1 | . . . . . . . 1 . . . . . . . . . . Weapon Failures 13 | . . . 4 2 . . 6 . . . . . . . . . 1 Overload Shots . | . . . . . . . . . . . . . . . . . . Overflow Damage 511 | . . . . 90 . 2 . . 21 . . 73 . 10 77 . 238 Projectiles 108 | . . . . 15 . . . . . . . . . 10 77 . 6 Explosions 335 | . . . . 28 . 2 . . . . . 73 . . . . 232 Melee 68 | . . . . 47 . . . . 21 . . . . . . . . Knockbacks 12 | . . . . 1 . . . . . . . . . . 10 . 1 Impact 1 | . . . . 1 . . . . . . . . . . . . . Kinetic 11 | . . . . . . . . . . . . . . . 10 . 1 Secondary . | . . . . . . . . . . . . . . . . . . Self-Inflicted Damage 85 | . . . . 22 . . . . . . . . . . . . 63 Shots 3 | . . . . 1 . . . . . . . . . . . . 2 Rammed . | . . . . . . . . . . . . . . . . . . Targets Rammed . | . . . . . . . . . . . . . . . . . . Kicked . | . . . . . . . . . . . . . . . . . . Crushed . | . . . . . . . . . . . . . . . . . . Highest Temperature 265 | . 141 79 259 227 230 159 230 . . . . 48 . 27 265 . 185 Average Temperature 45 | . 35 20 18 61 99 83 49 . . . . 22 . 18 143 . 72 Received Heat Transfer 2384 | . 300 54 306 60 . . 630 . . 12 . 108 15 63 66 . 770 Siege Activations . | . . . . . . . . . . . . . . . . . . Martial Activations . | . . . . . . . . . . . . . . . . . . Shielding Activations . | . . . . . . . . . . . . . . . . . . Robots Disrupted . | . . . . . . . . . . . . . . . . . . Combat Hostiles . | . . . . . . . . . . . . . . . . . . Robots Corrupted 1 | . . . . 1 . . . . . . . . . . . . . Combat Hostiles . | . . . . . . . . . . . . . . . . . . Parts Fried 7 | . . . 1 2 . . . . . . . . . . . . 4 Impact Corruptions 2 | . . . . 2 . . . . . . . . . . . . . Robots Melted 1 | . . . . 1 . . . . . . . . . . . . . Combat Hostiles 1 | . . . . 1 . . . . . . . . . . . . . Parts Melted 14 | . 6 3 1 2 . . 2 . . . . . . . . . . Heat Transferred 6636 | . 1234 629 2368 703 . . . . . 37 . 666 74 666 . . 259 Parts Sabotaged . | . . . . . . . . . . . . . . . . . . Parts Stolen . | . . . . . . . . . . . . . . . . . . Parts Stripped . | . . . . . . . . . . . . . . . . . . Power Chain Reactions . | . . . . . . . . . . . . . . . . . . Alert | -11 -10 -10 -9 -9 -9 -8 -8 -7 -7 -7 -7 -6 -6 -6 -6 -6 -6 ------- Run | Yrd Mat Min Mat Min Exi Min Mat Fac Low Low Dat Pro Fac Low Low Zio Dee Maximum Alert Level 3 | . . . 3 1 . . 2 . . . . . 1 . . . . Low Security (%) 56 | 100 100 100 11 . . 100 43 100 . . . . 68 . . . . Level 1 21 | . . . 18 100 . . 29 . . . . . 31 . . . . Level 2 13 | . . . 31 . . . 26 . . . . . . . . . . Level 3 8 | . . . 38 . . . . . . . . . . . . . . Level 4 . | . . . . . . . . . . . . . . . . . . Level 5 . | . . . . . . . . . . . . . . . . . . High Security . | . . . . . . . . . . . . . . . . . . Max Security . | . . . . . . . . . . . . . . . . . . Peak Influence 943 | 15 77 165 943 384 . 103 574 70 . . . . 251 . . . . Initial 360 | . . 9 57 360 . . 4 70 . . . . 44 . . . . Average 229 | 1 27 37 557 307 . 32 257 15 . . . . 116 . . . . Influence Increases 4787 | 15 469 262 1497 330 . 103 1039 88 12 34 . 237 341 171 189 . . Destroy 0b10 Robot/C 2500 | . 260 200 680 240 . 80 480 40 . 20 . 180 60 120 140 . . Destroy 0b10 Robot/NC 260 | 15 35 5 100 35 . . 35 5 10 . . . 5 5 10 . . Destroy Leader 564 | . 68 30 180 30 . 10 126 20 . 10 . 30 10 30 20 . . Allied During Kill 79 | . . . . . . . 10 7 2 4 . 12 24 16 4 . . Successful Hack 72 | . 29 . 20 . . . 23 . . . . . . . . . . Select Force Hacks 120 | . 60 . 30 . . . 30 . . . . . . . . . . Disable Machine 150 | . . 15 30 15 . . 60 15 . . . . 15 . . . . Destroy Structure 98 | . 2 12 21 10 . 13 36 1 . . . . 3 . . . . Lose Combat Pursuer 120 | . 15 . 60 . . . 15 . . . . 15 . . 15 . . Miscellaneous 824 | . . . 376 . . . 224 . . . . . 224 . . . . Influence Decreases 4787 | 15 443 139 720 928 328 90 897 216 39 34 . 166 171 412 189 . . Entered New Map 1225 | . . 17 92 566 328 . 9 85 11 . . . 27 90 . . . Time Decay 2841 | 15 402 122 568 342 . 90 398 131 28 34 . 166 84 292 169 . . Lost Part 171 | . 41 . 60 20 . . 40 . . . . . . 10 . . . Lost Ally 100 | . . . . . . . . . . . . . 60 20 20 . . Purge Threat 450 | . . . . . . . 450 . . . . . . . . . . Squads Dispatched 19 | . 3 1 8 . . . 7 . . . . . . . . . . Investigation 9 | . 3 . 1 . . . 5 . . . . . . . . . . Extermination . | . . . . . . . . . . . . . . . . . . Reinforcement 7 | . . . 5 . . . 2 . . . . . . . . . . Assault 3 | . . 1 2 . . . . . . . . . . . . . . Garrison . | . . . . . . . . . . . . . . . . . . Intercept . | . . . . . . . . . . . . . . . . . . Searches Triggered . | . . . . . . . . . . . . . . . . . . Construction Impeded . | . . . . . . . . . . . . . . . . . . Haulers Reinforced . | . . . . . . . . . . . . . . . . . . Active Scanning Responses . | . . . . . . . . . . . . . . . . . . Cargo Convoy Interrupts . | . . . . . . . . . . . . . . . . . . Stealth | -11 -10 -10 -9 -9 -9 -8 -8 -7 -7 -7 -7 -6 -6 -6 -6 -6 -6 --------- Run | Yrd Mat Min Mat Min Exi Min Mat Fac Low Low Dat Pro Fac Low Low Zio Dee Distress Signals 10 | . 1 . 7 . . . . 2 . . . . . . . . . Communications Jammed . | . . . . . . . . . . . . . . . . . . Distress Signals . | . . . . . . . . . . . . . . . . . . Times Spotted 240 | . 27 15 52 13 . 3 28 2 . 2 . 7 4 4 8 . 75 Peak Tracking Total 52 | . 5 4 13 4 . 4 3 2 . 1 . 3 3 1 3 . 52 Tactical Retreats 8 | . 1 . 3 . . . 1 . . . . 1 . . 1 . 1 Traps | -11 -10 -10 -9 -9 -9 -8 -8 -7 -7 -7 -7 -6 -6 -6 -6 -6 -6 ------- Run | Yrd Mat Min Mat Min Exi Min Mat Fac Low Low Dat Pro Fac Low Low Zio Dee Traps Triggered 6 | . 1 . 3 . . . 2 . . . . . . . . . . Indirectly . | . . . . . . . . . . . . . . . . . . Trap Hack Attempts . | . . . . . . . . . . . . . . . . . . Triggered . | . . . . . . . . . . . . . . . . . . Disarmed . | . . . . . . . . . . . . . . . . . . Reprogrammed . | . . . . . . . . . . . . . . . . . . Reused . | . . . . . . . . . . . . . . . . . . Traps Extracted . | . . . . . . . . . . . . . . . . . . Installed . | . . . . . . . . . . . . . . . . . . Triggered . | . . . . . . . . . . . . . . . . . . Machines | -11 -10 -10 -9 -9 -9 -8 -8 -7 -7 -7 -7 -6 -6 -6 -6 -6 -6 ---------- Run | Yrd Mat Min Mat Min Exi Min Mat Fac Low Low Dat Pro Fac Low Low Zio Dee Machines Disabled 13 | . . 1 2 1 . . 4 1 . . . . 1 . 2 . 1 Max in Single Turn 1 | . . 1 1 1 . . 1 1 . . . . . . 1 . . Machines Repaired . | . . . . . . . . . . . . . . . . . . Machines Dismantled . | . . . . . . . . . . . . . . . . . . Machines Sabotaged . | . . . . . . . . . . . . . . . . . . Overloaded Fab Kills . | . . . . . . . . . . . . . . . . . . Hacking | -11 -10 -10 -9 -9 -9 -8 -8 -7 -7 -7 -7 -6 -6 -6 -6 -6 -6 --------- Run | Yrd Mat Min Mat Min Exi Min Mat Fac Low Low Dat Pro Fac Low Low Zio Dee Machines Accessed 46 | . 11 . 8 . 2 1 13 2 1 1 4 . 1 2 . . . Terminals 26 | . 8 . 4 . . 1 9 1 1 . . . 1 1 . . . Fabricators 1 | . . . . . . . . 1 . . . . . . . . . Repair Stations 4 | . 1 . 2 . . . 1 . . . . . . . . . . Recycling Units 5 | . 2 . 1 . . . 2 . . . . . . . . . . Scanalyzers 2 | . . . 1 . . . 1 . . . . . . . . . . Garrison Access . | . . . . . . . . . . . . . . . . . . Total Hacks 166 | . 39 . 29 . 6 2 43 8 1 1 34 . 1 2 . . . Successful 117 | . 22 . 19 . 6 2 26 4 1 1 34 . . 2 . . . Failed 49 | . 17 . 10 . . . 17 4 . . . . 1 . . . . Catastrophic 6 | . . . 1 . . . 4 . . . . . 1 . . . . Database Lockouts . | . . . . . . . . . . . . . . . . . . Manual 76 | . 24 . 14 . 1 . 24 4 . . . . . . 1 8 . Terminals 83 | . 23 . 18 . . 2 31 6 1 . . . 1 1 . . . Fabricators 2 | . . . . . . . . 2 . . . . . . . . . Repair Stations 14 | . 8 . 3 . . . 3 . . . . . . . . . . Recycling Units 15 | . 8 . 2 . . . 5 . . . . . . . . . . Scanalyzers 10 | . . . 6 . . . 4 . . . . . . . . . . Garrison Access . | . . . . . . . . . . . . . . . . . . Terminal Hacks 67 | . 6 . 4 . 6 2 8 3 1 1 34 . . 2 . . . Record 18 | . . . . . 5 . . . 1 . 11 . . 1 . . . Part Schematic 14 | . 1 . . . . . . . . . 13 . . . . . . Robot Schematic 7 | . . . . . . . . . . . 7 . . . . . . Robot Analysis 5 | . 4 . 1 . . . . . . . . . . . . . . Prototype ID Bank 6 | . 1 . 1 . . . . 1 . . 3 . . . . . . Open Door 2 | . . . . . . . . . . 1 . . . 1 . . . Terminal Index 1 | . . . . . . . 1 . . . . . . . . . . Alert Level 4 | . . . . . . 1 3 . . . . . . . . . . Unreport Threat 3 | . . . . . . . 3 . . . . . . . . . . Locate Traps 1 | . . . . . . . . 1 . . . . . . . . . Dispatch Records 1 | . . . . . . 1 . . . . . . . . . . . Hauler Manifests 1 | . . . 1 . . . . . . . . . . . . . . Zone Layout 3 | . . . 1 . . . 1 1 . . . . . . . . . Proto ID Catalog 1 | . . . . . 1 . . . . . . . . . . . . Fabricator Hacks . | . . . . . . . . . . . . . . . . . . Repair Station Hacks 8 | . 4 . 2 . . . 2 . . . . . . . . . . Scan Component 4 | . 2 . 1 . . . 1 . . . . . . . . . . Repair 4 | . 2 . 1 . . . 1 . . . . . . . . . . Recycling Unit Hacks 7 | . 3 . 1 . . . 3 . . . . . . . . . . Report Inventory 5 | . 2 . 1 . . . 2 . . . . . . . . . . Retrieve Components 2 | . 1 . . . . . 1 . . . . . . . . . . Scanalyzer 10 | . . . 6 . . . 4 . . . . . . . . . . Insert Component 2 | . . . 1 . . . 1 . . . . . . . . . . Analyze 2 | . . . 1 . . . 1 . . . . . . . . . . Retrieve Study 6 | . . . 4 . . . 2 . . . . . . . . . . Garrison Access Hacks . | . . . . . . . . . . . . . . . . . . Unauthorized Hacks 25 | . 9 . 6 . . . 9 1 . . . . . . . . . Terminals 21 | . 7 . 5 . . . 8 1 . . . . . . . . . Botnet 6 | . 2 . 2 . . . 2 . . . . . . . . . . Skim 15 | . 5 . 3 . . . 6 1 . . . . . . . . . Fabricators . | . . . . . . . . . . . . . . . . . . Repair Stations . | . . . . . . . . . . . . . . . . . . Recycling Units 4 | . 2 . 1 . . . 1 . . . . . . . . . . Tunnel 4 | . 2 . 1 . . . 1 . . . . . . . . . . Scanalyzers . | . . . . . . . . . . . . . . . . . . Garrison Access . | . . . . . . . . . . . . . . . . . . Data Cores Recovered 2 | . . . 1 . . . . 1 . . . . . . . . . Used . | . . . . . . . . . . . . . . . . . . Hacking Detections 33 | . 11 . 7 . . . 11 2 1 . . . 1 . . . . Full Trace Events 2 | . . . . . . . 2 . . . . . . . . . . Feedback Events . | . . . . . . . . . . . . . . . . . . Feedback Blocked . | . . . . . . . . . . . . . . . . . . Robot Schematics Acquired 9 | . . . . . . . . . . . 7 . . . . 2 . Robots Built . | . . . . . . . . . . . . . . . . . . Authchips . | . . . . . . . . . . . . . . . . . . Time . | . . . . . . . . . . . . . . . . . . Total Robot Build Rating . | . . . . . . . . . . . . . . . . . . Part Schematics Acquired 31 | . 1 . 1 . . . 1 . . . 13 . . . . 15 . Parts Built . | . . . . . . . . . . . . . . . . . . Authchips . | . . . . . . . . . . . . . . . . . . Time . | . . . . . . . . . . . . . . . . . . Total Part Build Rating . | . . . . . . . . . . . . . . . . . . Part Studies Acquired 6 | . . . 4 . . . 2 . . . . . . . . . . Parts Repaired 4 | . 2 . 1 . . . 1 . . . . . . . . . . Time 146 | . 52 . 50 . . . 44 . . . . . . . . . . Parts Recycled . | . . . . . . . . . . . . . . . . . . Recycled Matter . | . . . . . . . . . . . . . . . . . . Retrieved Matter . | . . . . . . . . . . . . . . . . . . Retrieved Components 14 | . 5 . . . . . 9 . . . . . . . . . . Parts Scanalyzed 2 | . . . 1 . . . 1 . . . . . . . . . . Part Schematics Acquired 2 | . . . 1 . . . 1 . . . . . . . . . . Parts Damaged . | . . . . . . . . . . . . . . . . . . Bothacking | -11 -10 -10 -9 -9 -9 -8 -8 -7 -7 -7 -7 -6 -6 -6 -6 -6 -6 ------------ Run | Yrd Mat Min Mat Min Exi Min Mat Fac Low Low Dat Pro Fac Low Low Zio Dee Used RIF Installer . | . . . . . . . . . . . . . . . . . . Robots Hacked . | . . . . . . . . . . . . . . . . . . Non-combat . | . . . . . . . . . . . . . . . . . . Combat . | . . . . . . . . . . . . . . . . . . Robot Hacks Applied . | . . . . . . . . . . . . . . . . . . Relay Couplers Released . | . . . . . . . . . . . . . . . . . . Fabnet Peak Effective % . | . . . . . . . . . . . . . . . . . . Robots Rewired 1 | . . . . . . . . . . . . . 1 . . . . Allies Hacked . | . . . . . . . . . . . . . . . . . . Hacks Repelled . | . . . . . . . . . . . . . . . . . . Allies | -11 -10 -10 -9 -9 -9 -8 -8 -7 -7 -7 -7 -6 -6 -6 -6 -6 -6 -------- Run | Yrd Mat Min Mat Min Exi Min Mat Fac Low Low Dat Pro Fac Low Low Zio Dee Total Allies 11 | . . . . . . . 4 . . . . . 5 . . 2 . Largest Group 6 | . . . . . . . 4 4 3 3 1 1 6 3 1 2 2 Highest-Rated Group 205 | . . . . . . . 84 84 63 63 21 21 205 183 70 76 76 Highest-Rated Ally 70 | . . . . . . . 21 21 21 21 21 21 70 70 70 51 51 Total Orders . | . . . . . . . . . . . . . . . . . . Ally Attacks 122 | . . . . . . . 11 16 . 20 . 15 22 11 2 . 25 Total Damage 2769 | . . . . . . . 174 323 . 467 . 385 536 375 90 . 419 Kills 22 | . . . . . . . 1 2 . 1 . 5 3 4 2 . 4 Allies Corrupted . | . . . . . . . . . . . . . . . . . . Allies Melted . | . . . . . . . . . . . . . . . . . . X0-1V1 Amusement Gains 267 | . 14 . 80 5 . . 30 5 . . . . . 28 10 . 95 Average Entertainment 26 | . 13 5 35 48 . 16 24 16 14 9 . 2 . 41 29 . . Good Acts 74 | . . 3 8 6 . 2 12 2 3 5 . 5 15 7 6 . . Bad Acts 48 | . 1 3 16 3 . 1 7 1 . 1 . 1 2 8 4 . . Intel | -11 -10 -10 -9 -9 -9 -8 -8 -7 -7 -7 -7 -6 -6 -6 -6 -6 -6 ------- Run | Yrd Mat Min Mat Min Exi Min Mat Fac Low Low Dat Pro Fac Low Low Zio Dee Active Infowar (turns) 11844 | 70 1538 114 . 84 624 329 1244 87 . 986 194 358 . 1884 438 3733 161 Optics 2297 | . . . . . . . . 87 . . . . . . . 2210 . Terrain 955 | . . . . . . . . . . . . . . . . 794 161 Structural 2272 | . . . . . . . . . . 986 194 358 . 734 . . . Seismic 4003 | 70 1538 114 . 84 624 329 1244 . . . . . . . . . . Triangulation 516 | . . . . . . . . . . . . . . . 271 245 . Spoofing 484 | . . . . . . . . . . . . . . . . 484 . Jamming 2051 | . . . . . . . . . . . . . . 1884 167 . . ECM 41 | . . . . . . . . . . . . . . . . 41 . Robot Analysis Total 5 | . 4 . 1 . . . . . . . . . . . . . . Derelict Logs Recovered 15 | . . 3 . 1 . . . . 1 3 . 1 . 3 1 2 . Drone Launches . | . . . . . . . . . . . . . . . . . . Drone Recoveries . | . . . . . . . . . . . . . . . . . . Exploration | -11 -10 -10 -9 -9 -9 -8 -8 -7 -7 -7 -7 -6 -6 -6 -6 -6 -6 ------------- Run | Yrd Mat Min Mat Min Exi Min Mat Fac Low Low Dat Pro Fac Low Low Zio Dee Turns Passed 20859 | 161 1538 632 1706 771 629 329 1892 556 921 1235 194 906 191 2625 1359 4145 1069 Spaces Moved 9581 | 85 797 399 989 456 515 268 908 254 411 549 88 384 78 1117 562 1443 278 Core 26 | 15 . . . . . . . . . . . . . . . . 11 Treads 4587 | 70 70 . . . . . 207 254 411 549 88 384 78 1117 562 797 . Legs 913 | . . . . . . . . . . . . . . . . 646 267 Wheels 4055 | . 727 399 989 456 515 268 701 . . . . . . . . . . Hover . | . . . . . . . . . . . . . . . . . . Flight . | . . . . . . . . . . . . . . . . . . Fastest Speed 50 | 50 100 140 125 120 120 120 120 162 222 222 222 216 222 216 225 190 190 Average Speed 197 | 140 155 140 130 132 120 120 167 197 222 222 222 221 222 227 225 287 312 Slowest Speed 2050 | 160 320 140 175 205 120 120 400 222 222 222 222 222 222 233 225 630 2050 Overloaded Moves . | . . . . . . . . . . . . . . . . . . Propulsion Burnouts . | . . . . . . . . . . . . . . . . . . Robots Hopped . | . . . . . . . . . . . . . . . . . . Potential Cave-ins 8 | . . 8 . . . . . . . . . . . . . . . Cave-ins Triggered . | . . . . . . . . . . . . . . . . . . Exploration Rate (%) 61 | 5 99 79 74 78 78 68 71 7 65 75 69 65 5 95 53 87 35 Regions Visited 17 Branch Regions 12 Pre-discovered Areas 15 | . 5 1 1 . 1 . 3 . . . 1 . . 1 . 2 . Known Exits Taken 10 | . . 1 . . . 1 1 1 1 1 . 1 1 1 . 1 . Unknown Exits Taken 7 | 1 1 . 1 1 1 . . . . . 1 . . . 1 . . Scrap Searched 16 | . . 1 . 1 . . . . 1 . . 1 . 2 7 3 . Spaces Dug 12 | . 1 . 1 . . . 4 . . . . . . 1 5 . . Terrain Destroyed 228 | . 1 20 14 11 . 13 29 . . . . 33 1 3 21 . 82 Melee 5 | . . . 1 . . . 4 . . . . . . . . . . Projectile 53 | . 1 2 . 1 . . 7 . . . . 2 1 3 21 . 15 AOE 170 | . . 18 13 10 . 13 18 . . . . 31 . . . . 67 Terrain Rammed . | . . . . . . . . . . . . . . . . . . Walls Destroyed . | . . . . . . . . . . . . . . . . . . Machines Disabled . | . . . . . . . . . . . . . . . . . . Actions | -11 -10 -10 -9 -9 -9 -8 -8 -7 -7 -7 -7 -6 -6 -6 -6 -6 -6 --------- Run | Yrd Mat Min Mat Min Exi Min Mat Fac Low Low Dat Pro Fac Low Low Zio Dee Total 10692 | 111 950 439 1211 558 526 272 1131 309 415 562 87 414 91 1161 609 1445 401 Wait 245 | . 20 3 53 57 . 1 84 7 . . . . . . 5 1 14 Move 9564 | 84 796 398 988 455 514 267 907 253 410 548 87 383 77 1116 561 1442 278 Hop . | . . . . . . . . . . . . . . . . . . Pick Up 146 | 11 35 6 22 3 1 . 21 9 . 3 . 3 3 9 2 . 18 Fast Attach 37 | 1 1 1 4 2 5 . 3 9 . 2 . 1 . 2 3 . 3 Attach 64 | 6 5 . 10 . . . 6 6 . . . 2 3 . 2 . 24 Detach 7 | . . . 1 . . . . 3 . . . 1 . 1 . . 1 Swap 82 | 1 8 6 17 7 . 2 16 2 2 2 . 8 . 2 . 1 8 Drop 115 | . 4 6 18 4 6 . 21 17 . 5 . 4 2 10 7 . 11 Fire 420 | 8 81 19 97 29 . 2 69 3 . 2 . 12 3 21 29 1 44 Melee 9 | . . . 1 1 . . 4 . 3 . . . . . . . . Ram . | . . . . . . . . . . . . . . . . . . Kick . | . . . . . . . . . . . . . . . . . . Crush . | . . . . . . . . . . . . . . . . . . Escape Stasis . | . . . . . . . . . . . . . . . . . . Rewire 3 | . . . . . . . . . . . . . 3 . . . . Trap . | . . . . . . . . . . . . . . . . . . Miscellaneous . | . . . . . . . . . . . . . . . . . . Route ------- -11/Scrapyard -10/Materials (discovered 6 exits: *Mat x3 / [*Min x2] / *Sub) -10/Mines (discovered 3 exits: *Mat x2 / Sub) -9/Materials (discovered 4 exits: *Mat x3 / [*Min]) -9/Mines (discovered 3 exits: *Mat x2 / *Exi) -9/Exiles (discovered 2 exits: *Min x2) -8/Mines -8/Materials (discovered 4 exits: *Fac x3 / Sto) -7/Factory (discovered 3 exits: Fac x2 / *Low) -7/Lower Caves -7/Lower Caves (discovered 2 exits: *Fac / *Dat) -7/Data Miner -6/Proximity Caves -6/Factory (discovered 2 exits: Fac / *Low) -6/Lower Caves -6/Lower Caves (discovered 2 exits: Fac / *Zio) -6/Zion (discovered 2 exits: *Dee / [*Pro]) -6/Deep Caves History --------- Turn | Location | Event 12 | -11/Scrapyard | Discovered new exit (range 16) 162 | -11/Scrapyard | Entered Materials 316 | -10/Materials | Build established: Mutant 438 | -10/Materials | Repaired Huge Storage Unit 496 | -10/Materials | Repaired Grenade Launcher 506 | -10/Materials | Discovered new exit (range 16) 757 | -10/Materials | Discovered new exit (range 11) 860 | -10/Materials | Discovered new exit (range 16) 918 | -10/Materials | Discovered new exit (range 16) 993 | -10/Materials | Identified exit to Subcaves 1047 | -10/Materials | Learned 2 Mines zone layouts 1089 | -10/Materials | Learned location of Recycling (-8) 1123 | -10/Materials | Learned 2 Mines zone layouts 1158 | -10/Materials | Learned Storage emergency access door positions 1181 | -10/Materials | Loaded intel: 15 trap records 1234 | -10/Materials | Discovered new exit (range 13) 1257 | -10/Materials | Learned location of Mines (-8) 1637 | -10/Materials | Prayed at D.C.S.S. Altar Unit 1661 | -10/Materials | X0-1V1 sent you into danger 1680 | -10/Materials | Build established: Scavenger-Mutant 1700 | -10/Materials | Entered Mines 1701 | -10/Mines | Identified exit to Materials 1728 | -10/Mines | Found DCF Scrap (13 items) 1750 | -10/Mines | Joined a pair of Derelicts in attacking an 0b10 outpost 1808 | -10/Mines | Core integrity restored by X0-1V1 (+47) 1871 | -10/Mines | X0-1V1 vaporized surrounding terrain (radius 18) 1941 | -10/Mines | Heat dissipation permanently improved by X0-1V1 (+20; -100 max core) 2046 | -10/Mines | Learned location of Zion (-6) 2114 | -10/Mines | Learned Materials stockpile data 2142 | -10/Mines | X0-1V1 whisked you away to safety 2332 | -10/Mines | Entered Materials 2332 | -9/Materials | Evolved 2 slots: Utility x1, Weapon x1 2432 | -9/Materials | X0-1V1 added 0b10 threat records associated with you (considerable) 2770 | -9/Materials | Core integrity restored by X0-1V1 (+63) 2781 | -9/Materials | X0-1V1 announced a LAN party 3172 | -9/Materials | Discovered new exit (range 7) 3177 | -9/Materials | X0-1V1 sent you into danger 3245 | -9/Materials | Utility slot count permanently improved by X0-1V1 (+1) 3294 | -9/Materials | X0-1V1 caused items to flee you 3386 | -9/Materials | X0-1V1 added 0b10 threat records associated with you (considerable) 3398 | -9/Materials | Discovered new exit (range 11) 3502 | -9/Materials | Items stopped fleeing you 3611 | -9/Materials | X0-1V1 activates XOMVISION 3615 | -9/Materials | X0-1V1 sent hostile S-10 Pest (x4) 3653 | -9/Materials | X0-1V1 vaporized surrounding terrain (radius 19) 3679 | -9/Materials | Build established: Gunner 3704 | -9/Materials | Discovered new exit (range 12) 3725 | -9/Materials | Repaired Beamcaster? 3725 | -9/Materials | System corruption reached 10% 3752 | -9/Materials | X0-1V1 sent you into danger 3764 | -9/Materials | Identified exit to Materials 3764 | -9/Materials | X0-1V1 revealed exit location to -8/Materials 3902 | -9/Materials | X0-1V1 sent you to a vault 3932 | -9/Materials | First assault squad dispatched 4038 | -9/Materials | Entered Mines 4088 | -9/Mines | Met a Derelict bent on vengeance 4178 | -9/Mines | Energy generation permanently improved by X0-1V1 (+10; -100 max core) 4324 | -9/Mines | Received a Rocket Launcher from a helpful Derelict 4429 | -9/Mines | Excavation squad dispatched 4429 | -9/Mines | A large section of the Mines collapsed 4590 | -9/Mines | Discovered exit to Materials (range 8) 4612 | -9/Mines | Learned location of 2 exits from Materials 4670 | -9/Mines | X0-1V1 vaporized surrounding terrain (radius 16) 4670 | -9/Mines | Discovered new exit (range 8) 4718 | -9/Mines | X0-1V1 revealed exit location to -8/Materials 4801 | -9/Mines | Deemed a non-threat by the Exiles lab entrance 4809 | -9/Mines | Entered Exiles 4846 | -9/Exiles | Met 8R-AWN 4873 | -9/Exiles | Met EX-HEX 4945 | -9/Exiles | Met EX-BIN 4962 | -9/Exiles | Aligned with FarCom system 4963 | -9/Exiles | Given EX-Vault access code 4993 | -9/Exiles | Opened EX-Vault 5001 | -9/Exiles | Found Cloak of Protection 5026 | -9/Exiles | Warned to stay clear of 0b10 Research branches 5068 | -9/Exiles | Met EX-DEC 5112 | -9/Exiles | Visited The Gauntlet 5133 | -9/Exiles | Build established: Scavenger-Mutant 5221 | -9/Exiles | Discovered new exit (range 14) 5420 | -9/Exiles | Discovered new exit (range 15) 5438 | -9/Exiles | Left Exiles lab with Cloak of Protection 5438 | -9/Exiles | Entered Mines 5706 | -8/Mines | X0-1V1 put everyone to sleep 5723 | -8/Mines | System corruption reached 30% 5724 | -8/Mines | Core integrity restored by X0-1V1 (+50) 5738 | -8/Mines | Discovered exit to Materials (range 15) 5742 | -8/Mines | Build established: Scavenger-Skirmisher 5767 | -8/Mines | Entered Materials 5767 | -8/Materials | Evolved 2 slots: Propulsion x2 5768 | -8/Materials | Identified exit to Factory 5791 | -8/Materials | X0-1V1 announced a LAN party 5951 | -8/Materials | X0-1V1 activates XOMVISION 6021 | -8/Materials | X0-1V1 foreshadows a heat wave 6168 | -8/Materials | Ambient heat levels rising (+10) 6174 | -8/Materials | Build established: Mutant 6241 | -8/Materials | System corruption reached 10% 6314 | -8/Materials | X0-1V1 added 0b10 threat records associated with you (considerable) 6350 | -8/Materials | Ambient heat levels rising (+10) 6506 | -8/Materials | Build established: Skirmisher 6606 | -8/Materials | Ambient heat levels falling (-10) 6765 | -8/Materials | Ambient heat levels falling (-10) 6766 | -8/Materials | X0-1V1 put everyone to sleep 6846 | -8/Materials | X0-1V1 activates XOMVISION 6975 | -8/Materials | X0-1V1 upgraded hostiles (x1) 7040 | -8/Materials | X0-1V1 upgraded hostiles (x2) 7046 | -8/Materials | Core integrity fell below 50% 7292 | -8/Materials | Repaired Med. Treads? 7303 | -8/Materials | Learned Factory emergency access door positions 7305 | -8/Materials | X0-1V1 sent you to a vault 7367 | -8/Materials | Learned location of 3 exits from Factory 7463 | -8/Materials | Identified exit to Storage 7541 | -8/Materials | Learned 2 Lower Caves zone layouts 7545 | -8/Materials | X0-1V1 woke everyone up 7593 | -8/Materials | Learned location of Storage (-8) 7659 | -8/Materials | Entered Factory 7659 | -7/Factory | Accompanied by 4 allies 7659 | -7/Factory | Evolved 2 slots: Utility x2 7660 | -7/Factory | Identified exit to Lower Caves 7660 | -7/Factory | Identified exit to Factory 7765 | -7/Factory | X0-1V1 redirected Transport squads to designated parking area 8052 | -7/Factory | X0-1V1 sent you to a vault 8215 | -7/Factory | Entered Lower Caves 8215 | -7/Lower Caves | Accompanied by 3 allies 8442 | -7/Lower Caves | Identified exit to Lower Caves 8515 | -7/Lower Caves | Build established: Hacker-Tank 8865 | -7/Lower Caves | X0-1V1 activates XOMVISION 9136 | -7/Lower Caves | Entered another Lower Caves area 9136 | -7/Lower Caves | Accompanied by 3 allies 9137 | -7/Lower Caves | Encountered a Warlord checkpoint 9143 | -7/Lower Caves | Discovered exit to Factory (range 6) 9158 | -7/Lower Caves | Learned Factory stockpile data 9387 | -7/Lower Caves | Identified exit to Data Miner 9387 | -7/Lower Caves | X0-1V1 revealed exit location to -7/Data Miner 9444 | -7/Lower Caves | X0-1V1 caused items to flee you 9533 | -7/Lower Caves | X0-1V1 activates XOMVISION 9672 | -7/Lower Caves | Build established: Hacker-Skirmisher 9859 | -7/Lower Caves | Items stopped fleeing you 9980 | -7/Lower Caves | Learned Factory interactive machine intel 10275 | -7/Lower Caves | Learned Factory machine intel 10353 | -7/Lower Caves | Spotted B-75 Beast 10371 | -7/Lower Caves | Entered Data Miner 10371 | -7/Data Miner | Accompanied by 1 ally 10371 | -7/Data Miner | Discovered new exit (range 8) 10418 | -7/Data Miner | Met Data Miner 10469 | -7/Data Miner | Learned location of Section 7 (-2) 10469 | -7/Data Miner | Acquired the access code to Warlord's prototype stash 10507 | -7/Data Miner | Received God Mode back door access code from Data Miner 10565 | -7/Data Miner | Entered Proximity Caves 10565 | -6/Proximity Caves | Accompanied by 1 ally 10761 | -6/Proximity Caves | Attracted the attention of an 0b10 checkpoint 10920 | -6/Proximity Caves | Spotted B-75 Beast 10949 | -6/Proximity Caves | Destroyed B-75 Beast 11100 | -6/Proximity Caves | X0-1V1 activates XOMVISION 11122 | -6/Proximity Caves | Core integrity restored by X0-1V1 (+120) 11226 | -6/Proximity Caves | Build established: Hacker-Gunner 11471 | -6/Proximity Caves | Entered Factory 11471 | -6/Factory | Accompanied by 1 ally 11471 | -6/Factory | Evolved 2 slots: Power x1, Utility x1 11473 | -6/Factory | Loaded intel: 288 machine locations 11474 | -6/Factory | Loaded intel: 54 interactive machine locations 11479 | -6/Factory | Identified exit to Factory 11479 | -6/Factory | X0-1V1 revealed exit location to -5/Factory 11532 | -6/Factory | X0-1V1 sent you to a vault 11536 | -6/Factory | X0-1V1 released a cloud of subatomizers 11538 | -6/Factory | X0-1V1 put everyone to sleep 11572 | -6/Factory | X0-1V1 added 0b10 threat records associated with you (considerable) 11584 | -6/Factory | Identified exit to Lower Caves 11584 | -6/Factory | X0-1V1 revealed exit location to -6/Lower Caves 11633 | -6/Factory | X0-1V1 activates XOMVISION 11662 | -6/Factory | Entered Lower Caves 11662 | -6/Lower Caves | Accompanied by 3 allies 11662 | -6/Lower Caves | Spotted B-75 Beast 11662 | -6/Lower Caves | X0-1V1 sent you into danger 11707 | -6/Lower Caves | Destroyed B-75 Beast 11747 | -6/Lower Caves | X0-1V1 rewrote Chaingunner 5d IFF filter 11777 | -6/Lower Caves | Identified exit to Lower Caves 11853 | -6/Lower Caves | Forcibly received Sfc. Transmogifier from X0-1V1 11945 | -6/Lower Caves | Build established: Hacker-Tank 12858 | -6/Lower Caves | Build established: Infiltrator-Tank 13576 | -6/Lower Caves | Build established: Tank 13883 | -6/Lower Caves | X0-1V1 activates XOMVISION 13887 | -6/Lower Caves | X0-1V1 caused items to flee you 14224 | -6/Lower Caves | Items stopped fleeing you 14287 | -6/Lower Caves | Entered another Lower Caves area 14287 | -6/Lower Caves | Accompanied by 1 ally 14759 | -6/Lower Caves | Build established: Hacker-Tank 15224 | -6/Lower Caves | Spotted B-75 Beast 15360 | -6/Lower Caves | Acquired the password to a Derelict Tinkerer's latest research 15366 | -6/Lower Caves | Build established: Derelict-Tank 15380 | -6/Lower Caves | Found Prototype Special Weapon 15442 | -6/Lower Caves | Encountered a Warlord checkpoint 15446 | -6/Lower Caves | Discovered new exit (range 11) 15646 | -6/Lower Caves | Entered Zion 15700 | -6/Zion | Build established: Tank 15838 | -6/Zion | Discovered new exit (range 10) 15937 | -6/Zion | Acquired unknown access codes intercepted by a Zionite 16441 | -6/Zion | Identified exit to Deep Caves 16795 | -6/Zion | Gained Derelict followers 17031 | -6/Zion | Visited the Megawrench Repair Shop 17031 | -6/Zion | Megawrench repaired 12 parts 17147 | -6/Zion | Rebuked by Imprinter 17467 | -6/Zion | Build established: Derelict-Gunner 18626 | -6/Zion | Build established: Gunner 19044 | -6/Zion | Build established: Tank 19299 | -6/Zion | Opened final containment barrier to the Deep Caves 19782 | -6/Zion | Saw the warning signs outside the Deep Caves entrance 19791 | -6/Zion | Entered Deep Caves 19791 | -6/Deep Caves | Accompanied by 2 allies 19800 | -6/Deep Caves | Build established: Skirmisher 19908 | -6/Deep Caves | X0-1V1 poked a wall 19915 | -6/Deep Caves | Attacked by Z-Imprinter 19923 | -6/Deep Caves | Z-Facility disabled 19965 | -6/Deep Caves | Destroyed Z-Imprinter 19993 | -6/Deep Caves | Lost 5 parts (1p1n3w) 20039 | -6/Deep Caves | System corruption reached 10% 20209 | -6/Deep Caves | Lost 3 parts (1u2w) 20269 | -6/Deep Caves | Found Prototype Protection 20271 | -6/Deep Caves | Identified Zio. Weapon Casing 20354 | -6/Deep Caves | Found Zio. Weapon Casing 20365 | -6/Deep Caves | Found Prototype Protection 20573 | -6/Deep Caves | Build established: Gunner 20836 | -6/Deep Caves | Core integrity fell below 50% 20841 | -6/Deep Caves | Identified Zio. Heavy Carapace 20854 | -6/Deep Caves | Core integrity fell below 20% 20859 | -6/Deep Caves | Identified Molecular Deconstructor 20860 | -6/Deep Caves | Released all parts (4) 20860 | -6/Deep Caves | Destroyed by as-85454 with Assembled P-sword Last Messages --------------- 20856_ Slug penetrates as-93175. 20856_ as-93175 destroyed. 20857_ Slug penetrates Earth. 20858_ Penetrated by Slug. 20858_ Magnetic Acceleration Cannon destroyed. 20858_ Penetrated by Slug. 20858_ Identified Zio. Phaser-S. 20858_ Penetrated by Slug. 20859_ Zio. Phaser-S destroyed. 20859_ Identified Molecular Deconstructor. 20860_ X0-1V1 is amused. 20860_ Penetrated by Slug. 20860_ Slug penetrates Wall. 20860_ Released Weapon Mount. 20860_ Released Imp. Coolant Injector. 20860_ Released Huge Storage Unit. 20860_ Released Molecular Deconstructor. 20860_ Dropped Corrupted Tactical Coordination Suite. 20860_ X0-1V1 guffaws! Map ----- +----------------------------------------------------+ | | | | | | | | | | | | | | | ?????????????????????# ##############???####?????? | | ??????????????????????#" !! [!!! ! #???# #????## | | ??????????????????????## % #???# #?#### | | ???????????????????????# ### ### ###??#* ### | | ??????????????????????## ##### ##?# ### | | ????????????????????### ## # ] ### ## | | ????????????????????# "#* | | ????????????????????# * = ! | | ????????????????????## = ! ! | | ?????????????????????##" ! | | ??????????????????????### * | | ???????????????????????# ! ! | | ????????????????????#### !! | | ???????????????????## # """" | | ???????????????????# """"" | | ???????????????????# =# """"" | | ???????????????????##### *! """"" | | ?????????????????????# !!!/ """?? | | ?????????????????????# !!@!| """?? | | ?????????????????????## !a! """?? | | ????????????????????# % """?? | | ???????????????????# ""?? | | ??????????????????# ""?? | | ??????????????????# a ""?? | | ?????????????????# ""?? | | ?????????????????# a ""?? | | ????????????????# aa ""?? | | ????????????????## aa a ""?? | | ?????????????????## ""?? | | ??????????????????# a ""?? | | ??????????????????## # a ""?? | | ??????????????????? a ""? | | ???????????????????? a aa "" | | ????????????????????? "? | | ?????????????????????? "? | | ?????????????????????? "? | | ?????????????????????? "? | | ?????????????????????? "? | | ??????????????????????? ?? | | ??????????????????????? ?? | | ???????????????????????? ??? | | ???????????????????????? ??? | | ?????????????????????????? ????? | +----------------------------------------------------+ Best States ------------- Heat Dissipation 84 Coolant Potential 80 Energy Generation 59 Energy Capacity 1800 Matter Stores 900 Matter Capacity 900 Sight Range 22 Terrain Scan Range 20 Terrain Scan Density 210 ECM Strength 3 Jamming Range 12 Base Temperature (-) 150 Armor Coverage 600 Resistance: KI 40 Resistance: TH 56 Resistance: EM 20 Core Shielding 30 Utility Shielding 33 Weapon Shielding 100 Point Defense Rating 160 Phase Shifting 15 Evasion (%) 55 Targeting Accuracy 20 Launcher Accuracy 60 Target Analysis 6 Core Analysis 6 Recoil Reduction 4 Energy Filtering 50 Salvage Targeting 3 Offensive Hacking 20 Defensive Hacking 22 Item Schematics ----------------- Huge Storage Unit | -10/Materials | Hacked Seismic Detector | -9/Materials | Scanalyzed Hvy. Missile Launcher | -8/Materials | Scanalyzed Combat Drone Bay | -7/Data Miner | Free Lgt. Regenerative Plating | -7/Data Miner | Free Multireflex Exoskeleton | -7/Data Miner | Free Exp. Targeting Computer | -7/Data Miner | Free Cld. Plasma Cannon | -7/Data Miner | Free Nuclear Pulse Array | -7/Data Miner | Free Imp. Coolant Injector | -7/Data Miner | Free Adv. Heat Sink | -7/Data Miner | Free Adv. Plasma Cannon | -7/Data Miner | Free Disruptor Cannon | -7/Data Miner | Free Imp. Antigrav System | -7/Data Miner | Free Adv. Thermal Shield | -7/Data Miner | Free Lrn. Tractor Beam | -7/Data Miner | Free Focal Shield | -6/Zion | Archive Hvy. Treads | -6/Zion | Archive Adv. Drone Bay | -6/Zion | Archive Phase Cannon | -6/Zion | Archive Imp. Transmission Jammer | -6/Zion | Archive Enh. Optical Array | -6/Zion | Archive Phase Gun | -6/Zion | Archive Adv. Focal Shield | -6/Zion | Archive Thermic Laser | -6/Zion | Archive Imp. Weapon Cycler | -6/Zion | Archive Imp. Recalibrator | -6/Zion | Archive Imp. Particle Charger | -6/Zion | Archive Adv. Melee Analysis Suite | -6/Zion | Archive Wave Gun | -6/Zion | Archive Imp. KE Penetrator | -6/Zion | Archive Robot Schematics ------------------ M-14 Sweeper | -7/Data Miner | Free Y-54 Guardian | -7/Data Miner | Free R-10 Processor | -7/Data Miner | Free M-22 Extractor | -7/Data Miner | Free B-60 Warrior | -7/Data Miner | Free E-15 Imp | -7/Data Miner | Free S-27 Virus | -7/Data Miner | Free T-07 Excavator | -6/Zion | Archive A-02 Transporter | -6/Zion | Archive Fabricated ------------ Nothing Repaired ---------- Huge Storage Unit | 37% | -10/Materials Grenade Launcher | 58% | -10/Materials Beamcaster | 34% | -9/Materials Med. Treads | 33% | -8/Materials Studied --------- Imp. Treads | -9/Materials | Hacked Imp. Ion Engine | -9/Materials | Hacked Com. Wheel | -9/Materials | Hacked Wheel | -9/Materials | Hacked Arm. Treads | -8/Materials | Hacked Minigun | -8/Materials | Hacked Alien Tech Used ----------------- None Achievements -------------- None Challenges ------------ None Game ------ Seed PhaseSchematicRay Manual? 0 Play Time 02:39:00 Cumulative 440.2 hours Start 2026.09.13 @ 19:00:29 End 2026.09.15 @ 01:54:54 Sessions 2 Manual Loads 0 Difficulty Rogue Special Mode None Game No. 316 Rogue 306 Adventurer 0 Explorer 10 Win Type - Total 5 Types 5/0/0/0/0/0/0/0/0/0 Lore% 83 Gallery% 67 Achievement% 48 Wizard Run 0 Options --------- Layout 2 ASCII 0 Keyboard 0 Movement Arrows Keybinds 1 Fullscreen 1 Font 24/Smallcaps Map View 50x44 Zoom Use 0% Tactical HUD 1 Map Filters NONE Filters NONE Steam 1 RUN: e6b38df0-3d00-4414-bc79-cb3158aeeb7d